fUSD/lending_fUSD_20250209
["ID","MTS","AMOUNT","RATE_DAILY","PERIOD"]
[352383297,1739069454958,-500.0,0.00010547,2]
[352383298,1739069454967,-500.0,0.00010547,2]
[352383299,1739069454976,-418.1950076,0.00010547,2]
[352383300,1739069454986,-500.0,0.00010547,2]
[352383301,1739069454995,-500.0,0.00010547,2]
[352383302,1739069455006,-500.0,0.00010547,2]
[352383303,1739069455015,-500.0,0.00010547,2]
[352383304,1739069455024,-500.0,0.00010547,2]
[352383305,1739069455034,-500.0,0.00010547,2]
[352383306,1739069455044,-500.0,0.00010547,2]
[352383307,1739069455054,-643.06230898,0.00010547,2]
[352383308,1739069455063,-500.0,0.00010547,2]
[352383309,1739069455073,-596.50956778,0.00010547,2]
[352383310,1739069455082,-500.0,0.00010547,2]
[352383311,1739069455092,-500.0,0.00010547,2]
[352383312,1739069455102,-500.0,0.00010547,2]
[352383313,1739069455112,-500.0,0.00010547,2]
[352383314,1739069455121,-500.0,0.00010547,2]
[352383315,1739069455131,-500.0,0.00010547,2]
[352383316,1739069455140,-250.84641879,0.00010547,2]
[352383317,1739069455149,-442.06757714,0.00010547,2]
[352383318,1739069455159,-500.0,0.00010547,2]
[352383319,1739069455170,-500.0,0.00010547,2]
[352383320,1739069455180,-500.0,0.00010547,2]
[352383321,1739069455191,-500.0,0.00010547,2]
[352383322,1739069455200,-500.0,0.00010547,2]
[352383323,1739069455210,-500.0,0.00010547,2]
[352383324,1739069455220,-500.0,0.00010547,2]
[352383325,1739069455230,-500.0,0.00010547,2]
[352383326,1739069455244,-500.0,0.00010547,2]
[352383327,1739069455253,-500.0,0.00010547,2]
[352383328,1739069455263,-500.0,0.00010547,2]
[352383329,1739069455272,-556.03298072,0.00010547,2]
[352383330,1739069455283,-500.0,0.00010547,2]
[352383331,1739069455291,-500.0,0.00010547,2]
[352383332,1739069455301,-500.0,0.00010547,2]
[352383333,1739069455313,-500.0,0.00010547,2]
[352383334,1739069455322,-500.0,0.00010547,2]
[352383335,1739069455332,-500.0,0.00010547,2]
[352383336,1739069455342,-500.0,0.00010547,2]
[352383337,1739069455352,-500.0,0.00010547,2]
[352383338,1739069455362,-500.0,0.00010547,2]
[352383339,1739069455371,-500.0,0.00010547,2]
[352383340,1739069455381,-500.0,0.00010547,2]
[352383341,1739069455391,-500.0,0.00010547,2]
[352383342,1739069455400,-500.0,0.00010547,2]
[352383343,1739069455410,-579.76,0.00010547,2]
[352383344,1739069455419,-500.0,0.00010547,2]
[352383345,1739069455428,-329.2642744,0.00010547,2]
[352383346,1739069455438,-500.0,0.00010547,2]
[352383347,1739069455447,-576.76,0.00010547,2]
[352383348,1739069455457,-500.0,0.00010547,2]
[352383349,1739069455467,-585.88,0.00010547,2]
[352383350,1739069455477,-651.15,0.00010547,2]
[352383351,1739069455486,-500.0,0.00010547,2]
[352383352,1739069455496,-500.0,0.00010547,2]
[352383353,1739069455506,-500.0,0.00010547,2]
[352383354,1739069455515,-500.0,0.00010547,2]
[352383355,1739069455525,-500.0,0.00010547,2]
[352383356,1739069455535,-500.0,0.00010547,2]
[352383357,1739069455544,-500.0,0.00010547,2]
[352383358,1739069455554,-792.41,0.00010547,2]
[352383359,1739069455564,-500.0,0.00010547,2]
[352383360,1739069455573,-948.02,0.00010547,2]
[352383361,1739069455584,-500.0,0.00010547,2]
[352383362,1739069455593,-816.74,0.00010547,2]
[352383363,1739069455603,-500.0,0.00010547,2]
[352383364,1739069455612,-500.0,0.00010547,2]
[352383365,1739069455621,-150.0,0.00010583,2]
[352383366,1739069455631,-609.79071924,0.00010584,2]
[352383367,1739069455641,-995.5,0.00010606,2]
[352383368,1739069455650,-754.344585,0.00010606,2]
[352383369,1739069455659,-837.418506,0.00010606,2]
[352383370,1739069455669,-571.5,0.00010606,2]
[352383371,1739069455679,-1439.98,0.00010606,2]
[352383372,1739069455688,-1335.02,0.00010606,2]
[352383373,1739069455698,-559.11,0.00010606,2]
[352383374,1739069455709,-1093.73,0.00010606,2]
[352383375,1739069455719,-803.53,0.00010606,2]
[352383376,1739069455729,-1890.81,0.00010606,2]
[352383377,1739069455739,-1559.98,0.00010606,2]
[352383378,1739069455749,-967.4,0.00010606,2]
[352383379,1739069455759,-1029.95,0.00010606,2]
[352383380,1739069455768,-920.97,0.00010606,2]
[352383381,1739069455778,-1867.45,0.00010606,2]
[352383382,1739069455788,-789.25,0.00010606,2]
[352383383,1739069455797,-3744.99,0.00010606,2]
[352383384,1739069455806,-1560.02,0.00010606,2]
[352383385,1739069455816,-500.0,0.00010606,2]
[352383386,1739069455826,-736.32,0.00010606,2]
[352383387,1739069455836,-2494.58,0.00010606,2]
[352383388,1739069455846,-947.08,0.00010606,2]
[352383389,1739069455855,-1906.86,0.00010606,2]
[352383390,1739069455865,-1559.78,0.00010606,2]
[352383391,1739069455875,-3359.76,0.00010606,2]
[352383392,1739069455885,-1389.48,0.00010606,2]
[352383393,1739069455895,-1064.16,0.00010606,2]
[352383394,1739069455905,-630.3,0.00010606,2]
[352383395,1739069455914,-999.14,0.00010606,2]
[352383396,1739069455924,-500.0,0.00010606,2]
[352383397,1739069455933,-1578.2,0.00010606,2]
[352383398,1739069455943,-418.85575387,0.00010606,2]
[352383399,1739069455952,-1129.0,0.00010606,2]
[352383400,1739069455962,-1301.09,0.00010606,2]
[352383401,1739069455971,-1291.18,0.00010606,2]
[352383402,1739069455981,-1876.52,0.00010606,2]
[352383403,1739069455991,-1866.23,0.00010606,2]
[352383404,1739069456000,-2220.41,0.00010606,2]
[352383405,1739069456010,-1564.75,0.00010606,2]
[352383406,1739069456020,-926.11,0.00010606,2]
[352383407,1739069456030,-1329.14,0.00010606,2]
[352383408,1739069456040,-2507.15,0.00010606,2]
[352383409,1739069456050,-587.83,0.00010606,2]
[352383410,1739069456060,-853.77,0.00010606,2]
[352383411,1739069456069,-1628.99,0.00010606,2]
[352383412,1739069456079,-500.0,0.00010606,2]
[352383413,1739069456088,-200.13439555,0.00010606,2]
[352383414,1739069456098,-954.02,0.00010606,2]
[352383415,1739069456108,-938.82,0.00010606,2]
[352383416,1739069456117,-1573.35,0.00010606,2]
[352383417,1739069456127,-500.0,0.00010606,2]
[352383418,1739069456136,-1805.8,0.00010606,2]
[352383419,1739069456145,-774.74,0.00010606,2]
[352383420,1739069456155,-611.09,0.00010606,2]
[352383421,1739069456164,-500.0,0.00010606,2]
[352383422,1739069456173,-150.0,0.00010624,2]
[352383423,1739069456183,-150.0,0.00010637,2]
[352383424,1739069456193,-186.42473,0.00010665,2]
[352383425,1739069456202,-500.0,0.00010673,2]
[352383426,1739069456211,-217.78848176,0.00010673,2]
[352383427,1739069456221,-812.04,0.00010673,2]
[352383428,1739069456231,-500.0,0.00010673,2]
[352383429,1739069456244,-650.98,0.00010673,2]
[352383430,1739069456254,-725.66,0.00010673,2]
[352383431,1739069456263,-500.0,0.00010673,2]
[352383432,1739069456272,-626.3,0.00010673,2]
[352383433,1739069456283,-686.17,0.00010673,2]
[352383434,1739069456292,-751.94,0.00010673,2]
[352383435,1739069456301,-500.0,0.00010673,2]
[352383436,1739069456310,-809.56,0.00010673,2]
[352383437,1739069456321,-500.0,0.00010673,2]
[352383438,1739069456331,-500.0,0.00010673,2]
[352383439,1739069456340,-850.73,0.00010673,2]
[352383440,1739069456350,-172.04945607,0.00010673,2]
[352383441,1739069456359,-810.94,0.00010673,2]
[352383442,1739069456368,-500.0,0.00010673,2]
[352383443,1739069456378,-500.0,0.00010673,2]
[352383444,1739069456387,-819.57,0.00010673,2]
[352383445,1739069456397,-556.76,0.00010673,2]
[352383446,1739069456406,-881.6,0.00010673,2]
[352383447,1739069456416,-822.99,0.00010673,2]
[352383448,1739069456425,-720.56,0.00010673,2]
[352383449,1739069456435,-695.07,0.00010673,2]
[352383450,1739069456444,-788.71,0.00010673,2]
[352383451,1739069456454,-793.3,0.00010673,2]
[352383452,1739069456463,-500.0,0.00010673,2]
[352383453,1739069456473,-775.16,0.00010673,2]
[352383454,1739069456482,-760.1,0.00010673,2]
[352383455,1739069456492,-646.22,0.00010673,2]
[352383456,1739069456501,-500.0,0.00010673,2]
[352383457,1739069456511,-500.0,0.00010673,2]
[352383458,1739069456521,-1572.53,0.00010673,2]
[352383459,1739069456530,-1155.73,0.00010673,2]
[352383460,1739069456540,-858.34,0.00010673,2]
[352383461,1739069456550,-500.0,0.00010673,2]
[352383462,1739069456560,-1151.5,0.00010673,2]
[352383463,1739069456569,-782.41,0.00010673,2]
[352383464,1739069456579,-1084.12,0.00010673,2]
[352383465,1739069456589,-500.0,0.00010673,2]
[352383466,1739069456598,-667.59,0.00010673,2]
[352383467,1739069456607,-701.32,0.00010673,2]
[352383468,1739069456617,-2395.35,0.00010673,2]
[352383469,1739069456627,-608.93,0.00010673,2]
[352383470,1739069456636,-1744.39,0.00010673,2]
[352383471,1739069456645,-713.37,0.00010673,2]
[352383472,1739069456655,-1920.7,0.00010673,2]
[352383473,1739069456664,-1775.02,0.00010673,2]
[352383474,1739069456674,-500.0,0.00010673,2]
[352383475,1739069456684,-998.71,0.00010673,2]
[352383476,1739069456694,-674.24,0.00010673,2]
[352383477,1739069456702,-1286.34,0.00010673,2]
[352383478,1739069456711,-785.89,0.00010673,2]
[352383479,1739069456720,-1431.71,0.00010673,2]
[352383480,1739069456730,-2291.65,0.00010673,2]
[352383481,1739069456740,-500.0,0.00010673,2]
[352383482,1739069456751,-531.34,0.00010673,2]
[352383483,1739069456817,-984.4,0.00010673,2]
[352383484,1739069456827,-918.47,0.00010673,2]
[352383485,1739069456837,-500.0,0.00010673,2]
[352383486,1739069456846,-500.0,0.00010673,2]
[352383487,1739069456856,-1681.15,0.00010673,2]
[352383488,1739069456866,-586.82,0.00010673,2]
[352383489,1739069456875,-652.27,0.00010673,2]
[352383490,1739069456885,-906.36,0.00010673,2]
[352383491,1739069456895,-2072.47,0.00010673,2]
[352383492,1739069456904,-545.48,0.00010673,2]
[352383493,1739069456914,-852.61,0.00010673,2]
[352383494,1739069456923,-500.0,0.00010673,2]
[352383495,1739069456933,-1204.52,0.00010673,2]
[352383496,1739069456942,-581.58,0.00010673,2]
[352383497,1739069456952,-229.47480169,0.00010673,2]
[352383498,1739069456961,-1195.82,0.00010673,2]
[352383499,1739069456971,-500.0,0.00010673,2]
[352383500,1739069456980,-1261.96,0.00010673,2]
[352383501,1739069456989,-1407.94,0.00010673,2]
[352383502,1739069456999,-885.46,0.00010673,2]
[352383503,1739069457009,-4677.96,0.00010674,2]
[352383504,1739069457019,-1113.07,0.00010674,2]
[352383505,1739069457027,-1207.41,0.00010674,2]
[352383506,1739069457037,-1237.76,0.00010674,2]
[352383507,1739069457047,-2295.98,0.00010674,2]
[352383508,1739069457056,-918.0,0.00010674,2]
[352383509,1739069457065,-974.27,0.00010674,2]
[352383510,1739069457075,-1487.4,0.00010674,2]
[352383511,1739069457085,-1078.29,0.00010674,2]
[352383512,1739069457095,-1542.41,0.00010674,2]
[352383513,1739069457104,-1875.97,0.00010674,2]
[352383514,1739069457113,-701.32,0.00010675,2]
[352383515,1739069457122,-500.0,0.00010684,2]
[352383516,1739069457132,-500.0,0.00010684,2]
[352383517,1739069457141,-500.0,0.00010684,2]
[352383518,1739069457151,-500.0,0.00010684,2]
[352383519,1739069457160,-500.0,0.00010684,2]
[352383520,1739069457169,-211.09638634,0.00010684,2]
[352383521,1739069457178,-500.0,0.00010684,2]
[352383522,1739069457187,-500.0,0.00010684,2]
[352383523,1739069457197,-500.0,0.00010684,2]
[352383524,1739069457206,-500.0,0.00010684,2]
[352383525,1739069457215,-500.0,0.00010684,2]
[352383526,1739069457225,-500.0,0.00010684,2]
[352383527,1739069457235,-500.0,0.00010684,2]
[352383528,1739069457247,-500.0,0.00010684,2]
[352383529,1739069457256,-500.0,0.00010684,2]
[352383530,1739069457265,-500.0,0.00010684,2]
[352383531,1739069457274,-500.0,0.00010684,2]
[352383532,1739069457285,-500.0,0.00010684,2]
[352383533,1739069457295,-500.0,0.00010684,2]
[352383534,1739069457304,-500.0,0.00010684,2]
[352383535,1739069457315,-500.0,0.00010684,2]
[352383536,1739069457325,-418.90761545,0.00010684,2]
[352383537,1739069457334,-500.0,0.00010684,2]
[352383538,1739069457343,-500.0,0.00010684,2]
[352383539,1739069457352,-500.0,0.00010684,2]
[352383540,1739069457361,-500.0,0.00010684,2]
[352383541,1739069457371,-500.0,0.00010684,2]
[352383542,1739069457379,-500.0,0.00010684,2]
[352383543,1739069457389,-500.0,0.00010684,2]
[352383544,1739069457398,-500.0,0.00010684,2]
[352383545,1739069457407,-500.0,0.00010684,2]
[352383546,1739069457416,-500.0,0.00010684,2]
[352383547,1739069457426,-431.53546984,0.00010684,2]
[352383548,1739069457435,-500.0,0.00010684,2]
[352383549,1739069457444,-500.0,0.00010684,2]
[352383550,1739069457453,-456.46701244,0.00010684,2]
[352383551,1739069457462,-500.0,0.00010684,2]
[352383552,1739069457471,-500.0,0.00010684,2]
[352383553,1739069457481,-500.0,0.00010684,2]
[352383554,1739069457490,-500.0,0.00010684,2]
[352383555,1739069457499,-500.0,0.00010684,2]
[352383556,1739069457508,-500.0,0.00010684,2]
[352383557,1739069457517,-500.0,0.00010684,2]
[352383558,1739069457527,-500.0,0.00010684,2]
[352383559,1739069457535,-487.13712815,0.00010684,2]
[352383560,1739069457545,-500.0,0.00010684,2]
[352383561,1739069457554,-579.76,0.00010684,2]
[352383562,1739069457563,-500.0,0.00010684,2]
[352383563,1739069457572,-576.76,0.00010684,2]
[352383564,1739069457581,-500.0,0.00010684,2]
[352383565,1739069457591,-585.88,0.00010684,2]
[352383566,1739069457599,-651.15,0.00010684,2]
[352383567,1739069457608,-500.0,0.00010684,2]
[352383568,1739069457617,-500.0,0.00010684,2]
[352383569,1739069457626,-500.0,0.00010684,2]
[352383570,1739069457635,-500.0,0.00010684,2]
[352383571,1739069457644,-500.0,0.00010684,2]
[352383572,1739069457652,-391.34329634,0.00010684,2]
[352383573,1739069457661,-500.0,0.00010684,2]
[352383574,1739069457670,-792.41,0.00010684,2]
[352383575,1739069457679,-500.0,0.00010684,2]
[352383576,1739069457688,-948.02,0.00010684,2]
[352383577,1739069457697,-500.0,0.00010684,2]
[352383578,1739069457706,-816.74,0.00010684,2]
[352383579,1739069457715,-500.0,0.00010684,2]
[352383580,1739069457724,-500.0,0.00010684,2]
[352383581,1739069457733,-995.5,0.00010743,2]
[352383582,1739069457742,-754.344585,0.00010743,2]
[352383583,1739069457750,-837.418506,0.00010743,2]
[352383584,1739069457759,-571.5,0.00010743,2]
[352383585,1739069457768,-1439.98,0.00010743,2]
[352383586,1739069457779,-1335.02,0.00010743,2]
[352383587,1739069457788,-559.11,0.00010743,2]
[352383588,1739069457798,-1093.73,0.00010743,2]
[352383589,1739069457807,-803.53,0.00010743,2]
[352383590,1739069457817,-1890.81,0.00010743,2]
[352383591,1739069457826,-1559.98,0.00010743,2]
[352383592,1739069457835,-967.4,0.00010743,2]
[352383593,1739069457844,-1029.95,0.00010743,2]
[352383594,1739069457853,-920.97,0.00010743,2]
[352383595,1739069457863,-1867.45,0.00010743,2]
[352383596,1739069457872,-789.25,0.00010743,2]
[352383597,1739069457882,-3744.99,0.00010743,2]
[352383598,1739069457891,-1560.02,0.00010743,2]
[352383599,1739069457900,-500.0,0.00010743,2]
[352383600,1739069457910,-736.32,0.00010743,2]
[352383601,1739069457920,-2494.58,0.00010743,2]
[352383602,1739069457929,-947.08,0.00010743,2]
[352383603,1739069457938,-1906.86,0.00010743,2]
[352383604,1739069457947,-1559.78,0.00010743,2]
[352383605,1739069457957,-3359.76,0.00010743,2]
[352383606,1739069457968,-1389.48,0.00010743,2]
[352383607,1739069457977,-1064.16,0.00010743,2]
[352383608,1739069457986,-630.3,0.00010743,2]
[352383609,1739069457995,-999.14,0.00010743,2]
[352383610,1739069458005,-500.0,0.00010743,2]
[352383611,1739069458014,-1578.2,0.00010743,2]
[352383612,1739069458024,-1129.0,0.00010743,2]
[352383613,1739069458033,-1301.09,0.00010743,2]
[352383614,1739069458042,-1291.18,0.00010743,2]
[352383615,1739069458051,-1876.52,0.00010743,2]
[352383616,1739069458060,-1866.23,0.00010743,2]
[352383617,1739069458069,-2220.41,0.00010743,2]
[352383618,1739069458078,-1564.75,0.00010743,2]
[352383619,1739069458087,-926.11,0.00010743,2]
[352383620,1739069458096,-1329.14,0.00010743,2]
[352383621,1739069458105,-2507.15,0.00010743,2]
[352383622,1739069458114,-587.83,0.00010743,2]
[352383623,1739069458126,-853.77,0.00010743,2]
[352383624,1739069458136,-1628.99,0.00010743,2]
[352383625,1739069458146,-500.0,0.00010743,2]
[352383626,1739069458156,-954.02,0.00010743,2]
[352383627,1739069458165,-938.82,0.00010743,2]
[352383628,1739069458174,-1573.35,0.00010743,2]
[352383629,1739069458184,-500.0,0.00010743,2]
[352383630,1739069458193,-1805.8,0.00010743,2]
[352383631,1739069458202,-774.74,0.00010743,2]
[352383632,1739069458212,-611.09,0.00010743,2]
[352383633,1739069458221,-500.0,0.00010743,2]
[352383634,1739069458231,-500.19798779,0.00010755,2]
[352383635,1739069458245,-500.0,0.0001081,2]
[352383636,1739069458255,-812.04,0.0001081,2]
[352383637,1739069458263,-500.0,0.0001081,2]
[352383638,1739069458273,-650.98,0.0001081,2]
[352383639,1739069458284,-725.66,0.0001081,2]
[352383640,1739069458293,-597.48244417,0.0001081,2]
[352383641,1739069458302,-626.3,0.0001081,2]
[352383642,1739069458312,-686.17,0.0001081,2]
[352383643,1739069458321,-751.94,0.0001081,2]
[352383644,1739069458330,-500.0,0.0001081,2]
[352383645,1739069458339,-809.56,0.0001081,2]
[352383646,1739069458349,-153.629008,0.0001081,2]
[352383647,1739069458358,-500.0,0.0001081,2]
[352383648,1739069458367,-850.73,0.0001081,2]
[352383649,1739069458377,-810.94,0.0001081,2]
[352383650,1739069458386,-500.0,0.0001081,2]
[352383651,1739069458395,-500.0,0.0001081,2]
[352383652,1739069458405,-819.57,0.0001081,2]
[352383653,1739069458414,-556.76,0.0001081,2]
[352383654,1739069458424,-881.6,0.0001081,2]
[352383655,1739069458433,-822.99,0.0001081,2]
[352383656,1739069458442,-720.56,0.0001081,2]
[352383657,1739069458452,-695.07,0.0001081,2]
[352383658,1739069458461,-788.71,0.0001081,2]
[352383659,1739069458470,-793.3,0.0001081,2]
[352383660,1739069458479,-500.0,0.0001081,2]
[352383661,1739069458488,-775.16,0.0001081,2]
[352383662,1739069458498,-760.1,0.0001081,2]
[352383663,1739069458507,-646.22,0.0001081,2]
[352383664,1739069458516,-500.0,0.0001081,2]
[352383665,1739069458526,-500.0,0.0001081,2]
[352383666,1739069458535,-1572.53,0.0001081,2]
[352383667,1739069458544,-1155.73,0.0001081,2]
[352383668,1739069458555,-858.34,0.0001081,2]
[352383669,1739069458565,-500.0,0.0001081,2]
[352383670,1739069458574,-1151.5,0.0001081,2]
[352383671,1739069458583,-782.41,0.0001081,2]
[352383672,1739069458594,-1084.12,0.0001081,2]
[352383673,1739069458603,-500.0,0.0001081,2]
[352383674,1739069458613,-667.59,0.0001081,2]
[352383675,1739069458622,-2395.35,0.0001081,2]
[352383676,1739069458632,-608.93,0.0001081,2]
[352383677,1739069458641,-1744.39,0.0001081,2]
[352383678,1739069458651,-713.37,0.0001081,2]
[352383679,1739069458660,-1920.7,0.0001081,2]
[352383680,1739069458669,-1775.02,0.0001081,2]
[352383681,1739069458679,-500.0,0.0001081,2]
[352383682,1739069458688,-998.71,0.0001081,2]
[352383683,1739069458698,-674.24,0.0001081,2]
[352383684,1739069458707,-1286.34,0.0001081,2]
[352383685,1739069458716,-785.89,0.0001081,2]
[352383686,1739069458726,-1431.71,0.0001081,2]
[352383687,1739069458736,-2291.65,0.0001081,2]
[352383688,1739069458745,-500.0,0.0001081,2]
[352383689,1739069458755,-531.34,0.0001081,2]
[352383690,1739069458764,-984.4,0.0001081,2]
[352383691,1739069458774,-918.47,0.0001081,2]
[352383692,1739069458784,-500.0,0.0001081,2]
[352383693,1739069458793,-161.57270114,0.0001081,2]
[352383694,1739069458803,-1681.15,0.0001081,2]
[352383695,1739069458812,-586.82,0.0001081,2]
[352383696,1739069458821,-652.27,0.0001081,2]
[352383697,1739069458831,-906.36,0.0001081,2]
[352383698,1739069458840,-2072.47,0.0001081,2]
[352383699,1739069458849,-545.48,0.0001081,2]
[352383700,1739069458859,-852.61,0.0001081,2]
[352383701,1739069458868,-500.0,0.0001081,2]
[352383702,1739069458878,-1204.52,0.0001081,2]
[352383703,1739069458888,-581.58,0.0001081,2]
[352383704,1739069458897,-1195.82,0.0001081,2]
[352383705,1739069458907,-500.0,0.0001081,2]
[352383706,1739069458916,-1261.96,0.0001081,2]
[352383707,1739069458927,-1407.94,0.0001081,2]
[352383708,1739069458936,-885.46,0.0001081,2]
[352383709,1739069458946,-4677.96,0.00010811,2]
[352383710,1739069458956,-1113.07,0.00010811,2]
[352383711,1739069458966,-1207.41,0.00010811,2]
[352383712,1739069458975,-1237.76,0.00010811,2]
[352383713,1739069458985,-701.32,0.00010811,2]
[352383714,1739069458994,-2295.98,0.00010811,2]
[352383715,1739069459004,-918.0,0.00010811,2]
[352383716,1739069459014,-974.27,0.00010811,2]
[352383717,1739069459024,-1487.4,0.00010811,2]
[352383718,1739069459034,-1078.29,0.00010811,2]
[352383719,1739069459043,-1542.41,0.00010811,2]
[352383720,1739069459053,-1875.97,0.00010811,2]
[352383721,1739069459063,-150.0,0.0001082,2]
[352383722,1739069459073,-500.0,0.00010821,2]
[352383723,1739069459082,-500.0,0.00010821,2]
[352383724,1739069459091,-500.0,0.00010821,2]
[352383725,1739069459100,-500.0,0.00010821,2]
[352383726,1739069459110,-500.0,0.00010821,2]
[352383727,1739069459119,-463.64554915,0.00010821,2]
[352383728,1739069459128,-500.0,0.00010821,2]
[352383729,1739069459138,-479.37749359,0.00010821,2]
[352383730,1739069459147,-500.0,0.00010821,2]
[352383731,1739069459156,-500.0,0.00010821,2]
[352383732,1739069459165,-500.0,0.00010821,2]
[352383733,1739069459175,-619.54334636,0.00010821,2]
[352383734,1739069459184,-319.33794616,0.00010821,2]
[352383735,1739069459194,-346.01977543,0.00010821,2]
[352383736,1739069459203,-382.90558886,0.00010821,2]
[352383737,1739069459213,-500.0,0.00010821,2]
[352383738,1739069459224,-282.57323522,0.00010821,2]
[352383739,1739069459235,-500.0,0.00010821,2]
[352383740,1739069459248,-500.0,0.00010821,2]
[352383741,1739069459257,-500.0,0.00010821,2]
[352383742,1739069459267,-500.0,0.00010821,2]
[352383743,1739069459276,-500.0,0.00010821,2]
[352383744,1739069459288,-500.0,0.00010821,2]
[352383745,1739069459298,-500.0,0.00010821,2]
[352383746,1739069459309,-500.0,0.00010821,2]
[352383747,1739069459320,-500.0,0.00010821,2]
[352383748,1739069459330,-500.0,0.00010821,2]
[352383749,1739069459340,-500.0,0.00010821,2]
[352383750,1739069459350,-500.0,0.00010821,2]
[352383751,1739069459359,-500.0,0.00010821,2]
[352383752,1739069459369,-230.1352589,0.00010821,2]
[352383753,1739069459378,-500.0,0.00010821,2]
[352383754,1739069459387,-500.0,0.00010821,2]
[352383755,1739069459397,-500.0,0.00010821,2]
[352383756,1739069459408,-500.0,0.00010821,2]
[352383757,1739069459417,-500.0,0.00010821,2]
[352383758,1739069459426,-500.0,0.00010821,2]
[352383759,1739069459436,-500.0,0.00010821,2]
[352383760,1739069459445,-500.0,0.00010821,2]
[352383761,1739069459454,-579.76,0.00010821,2]
[352383762,1739069459464,-500.0,0.00010821,2]
[352383763,1739069459473,-576.76,0.00010821,2]
[352383764,1739069459482,-500.0,0.00010821,2]
[352383765,1739069459492,-585.88,0.00010821,2]
[352383766,1739069459501,-651.15,0.00010821,2]
[352383767,1739069459511,-500.0,0.00010821,2]
[352383768,1739069459522,-500.0,0.00010821,2]
[352383769,1739069459532,-500.0,0.00010821,2]
[352383770,1739069459542,-500.0,0.00010821,2]
[352383771,1739069459552,-202.35449996,0.00010821,2]
[352383772,1739069459561,-500.0,0.00010821,2]
[352383773,1739069459571,-792.41,0.00010821,2]
[352383774,1739069459582,-500.0,0.00010821,2]
[352383775,1739069459593,-948.02,0.00010821,2]
[352383776,1739069459603,-500.0,0.00010821,2]
[352383777,1739069459614,-816.74,0.00010821,2]
[352383778,1739069459624,-500.0,0.00010821,2]
[352383779,1739069459634,-500.0,0.00010821,2]
[352383780,1739069459645,-18402.1257688,0.00010828,2]
[352383781,1739069459655,-200.0,0.00010832,2]
[352383782,1739069459665,-47560.8799241,0.00010833,2]
[352383783,1739069459675,-420.68,0.00010847,2]
[352383784,1739069459686,-18402.1257688,0.0001085,2]
[352383785,1739069459696,-47560.8799241,0.00010851,2]
[352383786,1739069459706,-1000.0,0.00010854,2]
[352383787,1739069459716,-1279.16,0.00010855,2]
[352383788,1739069459726,-2030.736,0.00010855,2]
[352383789,1739069459736,-150.843,0.00010855,2]
[352383790,1739069459746,-640.162,0.00010855,2]
[352383791,1739069459755,-571.656,0.00010855,2]
[352383792,1739069459765,-1833.439,0.00010855,2]
[352383793,1739069459775,-1272.501,0.00010855,2]
[352383794,1739069459784,-910.69,0.00010855,2]
[352383795,1739069459794,-2963.271,0.00010855,2]
[352383796,1739069459803,-785.0,0.00010855,2]